Workbook

Sheet Tabelle1
B1: Wirtschaftlichkeitsberechnung Heizungsanlage für Ein - Dreifamilienhäuser, Jahresheizenergiebedarf bis 35.000kWh ( 25kW Anschlussleistung) Größere Leistungen sind Sonderanschlüsse und werden gesondert bewertet, die beeinflusst auch die Preisbildung.
B7: Grundlagen | D7: Gesamtwirkungsgrad Heizkesselanlage, einschließlich Energieverluste durch den Kamin und Stillstand 90%
D8: Aktuelle Marktübliche Endverbraucherpreise, Technik installiert und gewarten durch das Fachhandwerk
D9: Energiepreise, Durchschnitte der letzten 3 Jahre, über die gängigen Suchportale
D10: Nutzungsdauer der Anlagentechnik gemäß Herstelleraussagen, bzw. nach Ersatzteilgarantie
D11: Bauliche Massnahmen, wie Bunker, Sonden usw. gemäß durchschnittlichen Erfahrungswerten
D12: Tägliche Kosten für Unterhaltsarbeiten Scheitholz/ Hackschnitzelkessel/ Pellets sind nicht kalkuliert
D13: In dieser Tabelle kann man in den gelb hinterlegten Feldern seine eigenen Werte/ Kosten eintragen. Das Ergebnis sind die tatsächlichen Vollkosten je kW/h. Diese Berechnungen sollten zu ca. 95% stimmen, Einzelabweichungen im Sonderfall immer möglich.
B16: Ölheizung
B20: Ölbedarf jährlich | D20: in ltr | E20: 2300
B21: Energiebedarf jährlich | D21: in kWh | E21: =10.08*E20 -> 23184 | G21: Energieinhalt Heizöl 1 ltr = 10,08 kWh
B22: Energiebedarf bereinigt | D22: in kWh | E22: =0.9*E21 -> 20865.6 | G22: Gesamtwirkungsgrad Heizkessel mit eingerechnet
B23: Kostenart | D23: Größe, ltr/ m³/ kW | E23: Menge | F23: Kosten | G23: Faktor/ Einheit | I23: Laufjahre | J23: jährliche Kosten | L23: Sonstiges
B24: Heizkessel + Zubehör | D24: 20 - 25 kW | E24: 1 | F24: 18200 | G24: €/Stk | I24: 17 | J24: =(E24*F24)/I24 -> 1070.588235 | L24: Ölbrennwert
B25: Öllager | D25: 5000 Liter | E25: 1 | F25: 4200 | G25: €/ Stk | I25: 30 | J25: =(E25*F25)/I25 -> 140 | L25: Sanierung nach 30 Jahren
B26: Raumkosten Heizraum | D26: m² | E26: 8 | F26: 1600 | G26: €/m² | I26: 50 | J26: =E26*F26/I26 -> 256 | L26: Baukosten/m² aktuell
B27: Raumkosten Ölraum | D27: m² | E27: 8 | F27: 1600 | G27: €/m² | I27: 50 | J27: =E27*F27/I27 -> 256 | L27: Baukosten/m² aktuell
B28: Kamin | D28: 10 m Höhe | E28: 10 | F28: 80 | G28: €/ Stk | I28: 17 | J28: =E28*F28/I28 -> 47.05882353 | L28: Sanierungskosten
B29: Reparaturrücklagen | D29: 1 jährliche | E29: 1 | F29: 150 | G29: €/a | I29: 1 | J29: 150
B30: Wartung | D30: 1 jährliche | E30: 1 | F30: 150 | G30: €/Stk | I30: 1 | J30: 150 | L30: Instandhaltung
B31: Kaminkehrer | D31: 1 jährliche | E31: 1 | F31: 80 | G31: €/a | I31: 1 | J31: =E31*F31 -> 80
B33: Feste Kosten | D33: jährlich | E33: 1 | G33: €/a | I33: 1 | J33: =SUM(J24:J32) -> 2149.647059 | L33: ohne Inflation
B34: Variable Kosten
B35: Öleinkauf | D35: jährlich | E35: =E20 -> 2300 | F35: 1 | G35: €/ltr | I35: 1 | J35: =E35*F35 -> 2300 | L35: ohne CO² Steuer
B36: Stromkosten | D36: jährlich | E36: 120 | F36: 0.28 | G36: €/kWh | I36: 1 | J36: =E36*F36 -> 33.6 | L36: Nur Brennergebläse
B37: Variable Kosten gesamt | D37: jährlich | J37: =SUM(J35:J36) -> 2333.6 | L37: ohne Inflation
B40: Gesamtkosten | D40: Feste + Variable Kosten gesamt | J40: =J37+J33 -> 4483.247059
B42: Umgelegt auf die kWh entspricht dies Kosten von | F42: =J40 -> 4483.247059 | G42: : | H42: =E22 -> 20865.6 | I42: kWh = | J42: =F42/H42 -> 0.2148630789 | L42: kWh
B44: Umgelegt auf die kWh ohne Raumkosten | F44: =F42-J26-J27 -> 3971.247059 | G44: : | H44: =E22 -> 20865.6 | I44: kWh = | J44: =F44/H44 -> 0.1903250833 | L44: kWh
B47: Pelletsheizung
B51: Pelletsbedarf jährlich | D51: in kg | E51: 5000
B52: Energiebedarf jährlich | D52: in kWh | E52: =5*E51 -> 25000 | G52: Energieinhalt Pellets, 1 kg = 5 kWh
B53: Energiebedarf bereinigt | D53: in kWh | E53: =0.9*E52 -> 22500 | G53: Gesamtwirkungsgrad Heizkessel mit eingerechnet
B54: Kostenart | D54: Größe, ltr/ m³/ kW | E54: Menge | F54: Kosten | G54: Faktor/ Einheit | I54: Laufjahre | J54: jährliche Kosten | L54: Sonstiges
B55: Heizkessel + Zubehör | D55: 20 - 24 kW | E55: 1 | F55: 28000 | G55: €/Stk | I55: 17 | J55: =(E55*F55)/I55 -> 1647.058824 | L55: Heizwert mit Puffer
B56: Pelletslager | D56: 6000 kg | E56: 1 | F56: 2500 | G56: €/ Stk | I56: 17 | J56: =(E56*F56)/I56 -> 147.0588235 | L56: Bau Bunker im Austausch
B57: Raumkosten Heizraum | D57: m² | E57: 8 | F57: 1600 | G57: €/m² | I57: 50 | J57: =E57*F57/I57 -> 256 | L57: Baukosten/m² aktuell
B58: Raumkosten Pellets | D58: m² | E58: 8 | F58: 1600 | G58: €/m² | I58: 50 | J58: =E58*F58/I58 -> 256 | L58: Baukosten/m² aktuell
B59: Kamin | D59: 10 m Höhe | E59: 10 | F59: 80 | G59: €/ Stk | I59: 17 | J59: =E59*F59/I59 -> 47.05882353 | L59: Sanierungskosten
B60: Reparaturrücklagen | D60: 1 jährliche | E60: 1 | F60: 250 | G60: €/a | I60: 1 | J60: =F60 -> 250
B61: Wartung | D61: 1 jährliche | E61: 1 | F61: 220 | G61: €/Stk | I61: 1 | J61: =F61 -> 220 | L61: Instandhaltung
B62: Kaminkehrer | D62: 1 jährliche | E62: 1 | F62: 120 | G62: €/a | I62: 1 | J62: =E62*F62 -> 120
B64: Feste Kosten | D64: jährlich | E64: 1 | G64: €/a | I64: 1 | J64: =SUM(J55:J63) -> 2943.176471 | L64: ohne Inflation
B65: Variable Kosten
B66: Pelleteinkauf | D66: jährlich | E66: =E51 -> 5000 | F66: 0.38 | G66: €/kg | I66: 1 | J66: =E66*F66 -> 1900
B67: Stromkosten | D67: jährlich | E67: 200 | F67: 0.28 | G67: €/kWh | I67: 1 | J67: =E67*F67 -> 56 | L67: Nur Kesseltechnik
B68: Variable Kosten gesamt | D68: jährlich | J68: =SUM(J66:J67) -> 1956 | L68: ohne Inflation
B71: Gesamtkosten | D71: Feste + Variable Kosten gesamt | J71: =J68+J64 -> 4899.176471
B73: Umgelegt auf die kWh entspricht dies Kosten von | F73: =J71 -> 4899.176471 | G73: : | H73: =E53 -> 22500 | I73: kWh = | J73: =F73/H73 -> 0.2177411765 | L73: kWh
B75: Umgelegt auf die kWh ohne Raumkosten | F75: =F73-J57-J58 -> 4387.176471 | G75: : | H75: =E53 -> 22500 | I75: kWh = | J75: =F75/H75 -> 0.1949856209 | L75: kWh
B78: Hackschnitzelheizung
B82: Hackschnitzel jährlich | D82: in m³ | E82: 40 | L82: Mischholz
B83: Energiebedarf jährlich | D83: in kWh | E83: =E82*800 -> 32000 | G83: Energieinhalt Hackschnitzel, 800kWh/m³
B84: Energiebedarf bereinigt | D84: in kWh | E84: =0.9*E83 -> 28800 | G84: Gesamtwirkungsgrad Heizkessel mit eingerechnet
B85: Kostenart | D85: Größe, ltr/ m³/ kW | E85: Menge | F85: Kosten | G85: Faktor/ Einheit | I85: Laufjahre | J85: jährliche Kosten | L85: Sonstiges
B86: Heizkessel + Zubehör | D86: 20 - 24 kW | E86: 1 | F86: 28000 | G86: €/Stk | I86: 17 | J86: =(E86*F86)/I86 -> 1647.058824 | L86: Heizwert mit Puffer
B87: Hackschnitzellager | D87: 15 m³ | E87: 1 | F87: 2500 | G87: €/ Stk | I87: 17 | J87: =(E87*F87)/I87 -> 147.0588235 | L87: Bau Bunker im Austausch
B88: Raumkosten Heizraum | D88: m² | E88: 8 | F88: 1600 | G88: €/m² | I88: 50 | J88: =E88*F88/I88 -> 256 | L88: Baukosten/m² aktuell
B89: Raumkosten Lager | D89: m² | E89: 12 | F89: 1600 | G89: €/m² | I89: 50 | J89: =E89*F89/I89 -> 384 | L89: Baukosten/m² aktuell
B90: Kamin | D90: 10 m Höhe | E90: 10 | F90: 80 | G90: €/ Stk | I90: 17 | J90: =E90*F90/I90 -> 47.05882353 | L90: Sanierungskosten
B91: Reparaturrücklagen | D91: 1 jährliche | E91: 1 | F91: 300 | G91: €/a | I91: 1 | J91: =F91 -> 300
B92: Wartung | D92: 1 jährliche | E92: 1 | F92: 150 | G92: €/Stk | I92: 1 | J92: =F92 -> 150 | L92: Instandhaltung
B93: Kaminkehrer | D93: 1 jährliche | E93: 1 | F93: 120 | G93: €/a | I93: 1 | J93: =E93*F93 -> 120 | L93: Putzen/ Messen
B95: Feste Kosten | D95: jährlich | E95: 1 | G95: €/a | I95: 1 | J95: =SUM(J86:J94) -> 3051.176471 | L95: ohne Inflation
B96: Variable Kosten
B97: Hackschnitzeleinkauf | D97: jährlich | E97: =E82 -> 40 | F97: 25 | G97: €/m³ | I97: 1 | J97: =E97*F97 -> 1000 | L97: Zukauf
B98: Stromkosten | D98: jährlich | E98: 150 | F98: 0.28 | G98: €/kWh | I98: 1 | J98: =E98*F98 -> 42 | L98: Nur Kesseltechnik
B99: Variable Kosten gesamt | D99: jährlich | J99: =SUM(J97:J98) -> 1042 | L99: ohne Inflation
B102: Gesamtkosten | D102: Feste + Variable Kosten gesamt | J102: =J99+J95 -> 4093.176471
B104: Umgelegt auf die kWh entspricht dies Kosten von | F104: =J102 -> 4093.176471 | G104: : | H104: =E84 -> 28800 | I104: kWh = | J104: =F104/H104 -> 0.142124183 | L104: kWh
B106: Umgelegt auf die kWh ohne Raumkosten | F106: =F104-J88-J89 -> 3453.176471 | G106: : | H106: =E84 -> 28800 | I106: kWh = | J106: =F106/H106 -> 0.1199019608 | L106: kWh
B110: Scheitholzkessel
B114: Scheitholz jährlich | D114: in Ster | E114: 20 | L114: Mischholz
B115: Energiebedarf jährlich | D115: in kWh | E115: =E114*1800 -> 36000 | G115: Energieinhalt Ster Mischholz, 1800kWh/Ster
B116: Energiebedarf bereinigt | D116: in kWh | E116: =0.75*E115 -> 27000 | G116: Gesamtwirkungsgrad Heizkessel mit eingerechnet
B117: Kostenart | D117: Größe, ltr/ m³/ kW | E117: Menge | F117: Kosten | G117: Faktor/ Einheit | I117: Laufjahre | J117: jährliche Kosten | L117: Sonstiges
B118: Heizkessel + Zubehör | D118: 20 - 24 kW | E118: 1 | F118: 29000 | G118: €/Stk | I118: 17 | J118: =(E118*F118)/I118 -> 1705.882353 | L118: Heizwert mit Puffer
B119: Lagerraum Holz | D119: 20 m³ | E119: 1 | F119: 0 | G119: €/ Stk | I119: 17 | J119: =(E119*F119)/I119 -> 0 | L119: keine Baukosten
B120: Raumkosten Heizraum | D120: m² | E120: 10 | F120: 1600 | G120: €/m² | I120: 50 | J120: =E120*F120/I120 -> 320 | L120: Baukosten/m² aktuell
B121: Raumkosten Lager | D121: m² | E121: 12 | F121: 1600 | G121: €/m² | I121: 50 | J121: =E121*F121/I121 -> 384 | L121: Baukosten/m² aktuell
B122: Kamin | D122: 10 m Höhe | E122: 10 | F122: 80 | G122: €/ Stk | I122: 17 | J122: =E122*F122/I122 -> 47.05882353 | L122: Sanierungskosten
B123: Reparaturrücklagen | D123: 1 jährliche | E123: 1 | F123: 150 | G123: €/a | I123: 1 | J123: =F123 -> 150
B124: Wartung | D124: 1 jährliche | E124: 1 | F124: 60 | G124: €/Stk | I124: 1 | J124: =F124 -> 60 | L124: Instandhaltung
B125: Kaminkehrer | D125: 1 jährliche | E125: 1 | F125: 120 | G125: €/a | I125: 1 | J125: =E125*F125 -> 120 | L125: Putzen/ Messen
B127: Feste Kosten | D127: jährlich | E127: 1 | G127: €/a | I127: 1 | J127: =SUM(J118:J126) -> 2786.941176 | L127: ohne Inflation
B128: Variable Kosten
B129: Holzeinkauf | D129: jährlich | E129: =E114 -> 20 | F129: 55 | G129: €/m³ | I129: 1 | J129: =E129*F129 -> 1100 | L129: Zukauf 1/2 Meter Scheit
B130: Stromkosten | D130: jährlich | E130: 160 | F130: 0.28 | G130: €/kWh | I130: 1 | J130: =E130*F130 -> 44.8 | L130: Nur Kesseltechnik
B131: Variable Kosten gesamt | D131: jährlich | J131: =SUM(J129:J130) -> 1144.8 | L131: ohne Inflation
B134: Gesamtkosten | D134: Feste + Variable Kosten gesamt | J134: =J131+J127 -> 3931.741176
B136: Umgelegt auf die kWh entspricht dies Kosten von | F136: =J134 -> 3931.741176 | G136: : | H136: =E116 -> 27000 | I136: kWh = | J136: =F136/H136 -> 0.1456200436 | L136: kWh
B138: Umgelegt auf die kWh ohne Raumkosten | F138: =F136-J120-J121 -> 3227.741176 | G138: : | H138: =E116 -> 27000 | I138: kWh = | J138: =F138/H138 -> 0.1195459695 | L138: kWh
B141: Wärmepumpenanlage
B145: Strombezug WP jährlich | D145: in kWh | E145: 7000 | G145: Energieinhalt Strom, 1 kWh = 1 kWh
B146: Energiebedarf bereinigt | D146: in kWh | E146: 24000 | G146: Heizenergiebedarf des Gebäudes in kWh
B147: Kostenart | D147: Größe, ltr/ m³/ kW | E147: Menge | F147: Kosten | G147: Faktor/ Einheit | I147: Laufjahre | J147: jährliche Kosten | L147: Sonstiges
B148: Luftwärmepumpe | D148: 7 kW / COP2,5 | E148: 1 | F148: 17000 | G148: €/Stk | I148: 12 | J148: =F148*E148/I148 -> 1416.666667
B149: Solewärmepumpe | D149: 4 kW/ COP 4 | E149: 0 | F149: 14000 | G149: €/Stk | I149: 12 | J149: =F149*E149/I149 -> 0
B150: Tiefenbohrung | D150: m | E150: 0 | F150: 400 | G150: €/ m | I150: 17 | J150: =(E150*F150)/I150 -> 0 | L150: Bau Bunker im Austausch
B151: Erdkorb | D151: Stk | F151: 6000 | G151: €/Stk | I151: 17 | J151: =E151*F151/I151 -> 0 | L151: inkl Baggerarbeiten
B152: Erdtauscher | D152: m² | F152: 30 | G152: €/m² | I152: 17 | J152: =E152*F152/I152 -> 0 | L152: inlk Baggerarbeiten
B153: Fundament Aussenteil | D153: Stk | E153: 1 | F153: 600 | G153: €/Stk | I153: 17 | J153: =E153*F153/I153 -> 35.29411765 | L153: am Haus
B154: Raumkosten Heizraum | D154: m² | E154: 8 | F154: 1600 | G154: €/m² | I154: 50 | J154: =E154*F154/I154 -> 256 | L154: Baukosten/m² aktuell
B155: Reparaturrücklagen | D155: 1 jährliche | E155: 1 | F155: 250 | G155: €/a | I155: 1 | J155: =F155 -> 250
B156: Wartung | D156: 1 jährliche | E156: 1 | F156: 120 | G156: €/Stk | I156: 1 | J156: =F156 -> 120 | L156: Instandhaltung
B158: Feste Kosten | D158: jährlich | E158: 1 | G158: €/a | I158: 1 | J158: =SUM(J148:J157) -> 2077.960784 | L158: ohne Inflation
B159: Variable Kosten
B160: Stromkosten | D160: jährlich | E160: =E145 -> 7000 | F160: 0.28 | G160: €/kWh | I160: 1 | J160: =E160*F160 -> 1960 | L160: Antriebsenergie WP
B161: Variable Kosten gesamt | D161: jährlich | J161: =SUM(J160:J160) -> 1960 | L161: ohne Inflation
B164: Gesamtkosten | D164: Feste + Variable Kosten gesamt | J164: =J161+J158 -> 4037.960784
B166: Umgelegt auf die kWh entspricht dies Kosten von | F166: =J164 -> 4037.960784 | G166: : | H166: =E146 -> 24000 | I166: kWh = | J166: =F166/H166 -> 0.168248366 | L166: kWh
B168: Umgelegt auf die kWh ohne Raumkosten | F168: =F166-J154 -> 3781.960784 | G168: : | H168: =E146 -> 24000 | I168: kWh = | J168: =F168/H168 -> 0.1575816993 | L168: kWh
B171: Fernwärmeversorgung
B174: Sämtliche Kosten der Fernwärme sind bis einschließlich der hydraulischen Anpassung im kWh Preis enthalten, Erstellung des Rohrleitunganschlusses sowie humusieren der Pflanzflächen, Verschließen der Pflaster- bzw. Asphaltflächen, Demontage und Entsorgung der alten Heizungsanlage, Einbau und Einregulierung der Übergabestation, Isolieren der neu erstellten Leitungen. Erstellung des Glasfaseranschlusses für Fernüberwachung, Wartung- und Instanhaltungskosten. Für den Anschließer bleibt nur die Ansaat des Rasens, sowie die Wiederherstellung der Pflanzflächen sowie die Demontage des bestehenden Brennstofflagers.
B179: Energiebedarf | D179: in kWh | E179: 23000 | G179: Fernwärme wird verlustfrei übergeben
B180: Energiebedarf bereinigt | D180: in kWh | E180: =E179 -> 23000 | G180: Heizenergiebedarf des Gebäudes in kWh
B181: Kostenart | D181: Größe, ltr/ m³/ kW | E181: Menge | F181: Kosten | G181: Faktor/ Einheit | I181: Laufjahre | J181: jährliche Kosten | L181: Sonstiges
B182: Übergabepuffer/ station | D182: 25 kW | E182: 1 | F182: 0 | G182: €/Stk | I182: 10 | J182: =F182*E182/I182 -> 0 | L182: enthalten
B183: Umbau der bestehenden | E183: 1 | F183: 0 | G183: €/Stk | I183: 10 | J183: =F183*E183/I183 -> 0 | L183: enthalten
B184: Heizung bis Oberkante | E184: 1 | F184: 0 | G184: €/Stk | I184: 10 | J184: =(E184*F184)/I184 -> 0 | L184: enthalten
B185: Absperrungen | E185: 1 | F185: 0 | G185: €/Stk | I185: 10 | J185: =E185*F185/I185 -> 0 | L185: enthalten
B186: Rohrleitungsanpassung | E186: 1 | F186: 0 | G186: €/Stk | I186: 10 | J186: =E186*F186/I186 -> 0 | L186: enthalten
B187: Verlegung Fernwärme | E187: 1 | F187: 0 | G187: €/Stk | I187: 10 | J187: 0 | L187: enthalten
B188: Raumkosten Heizraum | D188: m² | E188: 2.5 | F188: 1600 | G188: €/Stk | I188: 50 | J188: =E188*F188/I188 -> 80 | L188: enthalten
B189: Reparaturrücklagen | E189: 1 | F189: 0 | G189: €/Stk | I189: 10 | J189: 0 | L189: enthalten
B190: Wartung | E190: 1 | F190: 0 | G190: €/Stk | I190: 10 | J190: 0 | L190: enthalten
B192: Feste Kosten | D192: jährlich | E192: 1 | F192: 0 | G192: €/a | I192: 10 | J192: =SUM(J182:J191) -> 80 | L192: ohne Inflation
B193: Variable Kosten
B194: Fernwärmekosten | D194: jährlich | E194: =E180 -> 23000 | F194: 0.145 | G194: €/kWh | I194: 1 | J194: =E194*F194 -> 3335 | L194: Einkauf Wärme
B195: Stromkosten | D195: jährlich | E195: 60 | F195: 0.28 | G195: €/kWh | I195: 1 | J195: =E195*F195 -> 16.8 | L195: Nur Kesseltechnik
B196: Variable Kosten gesamt | D196: jährlich | J196: =SUM(J194:J195) -> 3351.8 | L196: ohne Inflation
B199: Gesamtkosten | D199: Feste + Variable Kosten gesamt | J199: =J192+J194+J195 -> 3431.8
B201: Umgelegt auf die kWh entspricht dies Kosten von | F201: =J199 -> 3431.8 | G201: : | H201: =E180 -> 23000 | I201: kWh = | J201: =F201/H201 -> 0.1492086957 | L201: kWh
B203: Umgelegt auf die kWh ohne Raumkosten | F203: =F201-J188 -> 3351.8 | G203: : | H203: =E180 -> 23000 | I203: kWh = | J203: =F203/H203 -> 0.1457304348 | L203: kWh
